bitfinex-derivatives/quotes_SOLF0:USTF0_20250714
["timestamp","ask_amount","ask_price","bid_price","bid_amount"]
[1752510692187,0.07,164.51,164.42,3.53]
[1752510692490,6.0786,164.49,164.45,6.0796]
[1752510692682,0.07,164.48,164.46,3.53]
[1752510692882,191.12589008,164.48,164.4,3.53]
[1752510693088,6.08,164.45,164.41,6.0813]
[1752510693287,6.08,164.45,164.43,3.53]
[1752510693489,6.15,164.45,164.43,3.53]
[1752510693691,0.07,164.45,164.43,3.53]
[1752510694491,8.27589008,164.44,164.43,3.53]
[1752510694795,11.31430097,164.44,164.43,3.53]
[1752510695393,11.38430097,164.44,164.41,3.53]
[1752510695689,5.30390097,164.44,164.35,3.53]
[1752510695992,0.07,164.43,164.41,3.53]
[1752510696187,11.31430097,164.44,164.42,3.53]
[1752510696387,11.38430097,164.44,164.42,3.53]
[1752510696593,5.30390097,164.44,164.42,3.53]
[1752510696796,187.99390097,164.44,164.33,3.53]
[1752510697184,187.99390097,164.44,164.4,6.0816]
[1752510697389,6.0808,164.43,164.33,3.53]
[1752510698231,188.06390097,164.44,164.33,3.53]
[1752510698791,6.0812,164.42,164.33,3.53]
[1752510699198,6.0818,164.41,164.33,3.53]
[1752510699386,8.34589008,164.42,164.33,3.53]
[1752510699796,0.07,164.41,164.35,6.0834]
[1752510699994,8.34589008,164.4,164.37,3.53]
[1752510700194,0.07,164.39,164.37,3.53]
[1752510700390,6.0826,164.38,164.34,6.0838]
[1752510700695,8.27589008,164.38,164.27,13.33570287]
[1752510700896,8.34589008,164.38,164.36,3.53]
[1752510701896,14.42869008,164.38,164.36,3.53]
[1752510702498,8.34589008,164.38,164.36,3.53]
[1752510702997,8.34589008,164.38,164.36,9.613]
[1752510703195,0.07,164.4,164.37,3.53]
[1752510703396,0.07,164.4,164.27,8.27589008]
[1752510703397,191.08589008,164.4,164.3,3.53]
[1752510703599,0.07,164.39,164.35,6.0834]
[1752510703790,8.27589008,164.36,164.3,3.53]
[1752510703994,8.34589008,164.38,164.3,3.53]
[1752510704296,8.27589008,164.36,164.3,3.53]
[1752510704797,8.27589008,164.36,164.34,3.53]
[1752510705097,8.34589008,164.39,164.36,3.53]
[1752510705299,8.34589008,164.37,164.27,3.53]
[1752510705799,0.07,164.36,164.33,3.53]
[1752510706100,0.07,164.36,164.34,3.53]
[1752510706599,0.07,164.36,164.27,3.53]
[1752510706999,13.33112906,164.45,164.27,3.53]
[1752510707200,8.27589008,164.39,164.29,3.53]
[1752510707397,14.42819008,164.39,164.29,3.53]
[1752510707698,0.07,164.43,164.31,3.53]
[1752510707896,8.34589008,164.43,164.32,8.27589008]
[1752510708102,8.27589008,164.41,164.33,3.53]
[1752510708302,8.34589008,164.42,164.33,3.53]
[1752510708500,14.42719008,164.42,164.33,3.53]
[1752510708800,8.27589008,164.4,164.33,3.53]
[1752510709200,8.34589008,164.42,164.33,3.53]
[1752510709501,6.0821,164.4,164.37,6.0828]
[1752510709798,6.0821,164.4,164.39,3.53]
[1752510711100,6.0816,164.41,164.39,3.53]
[1752510711597,191.06589008,164.44,164.34,3.53]
[1752510711803,197.14639008,164.44,164.34,3.53]
[1752510712001,191.06589008,164.44,164.34,3.53]
[1752510712201,197.14649008,164.44,164.34,3.53]
[1752510712504,191.06589008,164.44,164.34,3.53]
[1752510712798,191.06589008,164.44,164.33,20.44469008]
[1752510713104,191.06589008,164.44,164.38,3.53]
[1752510713105,182.72,164.44,164.38,3.53]
[1752510713300,182.72,164.44,164.43,6.0807]
[1752510713502,182.72,164.44,164.38,3.53]
[1752510715607,182.72,164.44,164.4,3.53]
[1752510715799,182.72,164.44,164.32,5.05981279]
[1752510715800,182.66,164.49,164.42,3.53]
[1752510715999,182.64,164.49,164.48,3.53]
[1752510717003,182.64,164.49,164.48,9.6089]
[1752510717211,182.64,164.49,164.48,3.53]
[1752510717610,182.64,164.49,164.48,9.6089]
[1752510717908,188.6972,164.53,164.48,3.53]
[1752510718107,188.7572,164.53,164.48,3.53]
[1752510718509,182.62,164.53,164.46,8.27589008]
[1752510718712,182.62,164.53,164.47,3.53]
[1752510719011,182.62,164.53,164.46,8.27589008]
[1752510719012,182.62,164.53,164.52,3.53]
[1752510719806,182.62,164.53,164.52,6.0774]
[1752510720012,182.62,164.53,164.52,9.6074]
[1752510720612,0.06,164.59,164.55,6.0762]
[1752510720916,182.56,164.58,164.49,3.61]
[1752510721312,6.0756,164.57,164.49,3.61]
[1752510721607,182.62,164.58,164.49,3.61]
[1752510721916,188.6355,164.58,164.51,3.61]
[1752510722110,525.56,164.62,164.52,8.27750685]
[1752510722412,188.6147,164.6,164.53,3.61]
[1752510722615,182.54,164.6,164.53,3.61]
[1752510722814,182.6,164.6,164.53,3.61]
[1752510723013,6.075,164.59,164.53,3.61]
[1752510723211,182.6,164.6,164.53,3.61]
[1752510723415,188.6747,164.6,164.53,3.61]
[1752510723715,182.54,164.6,164.53,3.61]
[1752510723915,188.6147,164.6,164.53,3.61]
[1752510724116,182.54,164.6,164.53,3.61]
[1752510724317,182.54,164.6,164.56,6.0757]
[1752510724616,188.6147,164.6,164.58,3.61]
[1752510725116,6.0748,164.59,164.58,3.61]
[1752510726011,182.54,164.6,164.51,8.27434098]
[1752510726216,182.54,164.6,164.59,3.61]
[1752510726718,188.6747,164.6,164.57,3.61]
[1752510726928,182.6,164.6,164.52,3.61]
[1752510727118,0.06,164.59,164.52,3.61]
[1752510727542,6.1355,164.58,164.55,3.61]
[1752510727623,6.1355,164.58,164.56,3.61]
[1752510727920,14.34924098,164.59,164.5,3.61]
[1752510728520,8.33434098,164.59,164.5,3.61]
[1752510728721,0.06,164.58,164.5,3.61]
[1752510729420,6.1354,164.58,164.54,6.0764]
[1752510729615,6.0754,164.58,164.49,8.27434098]
[1752510729816,6.0754,164.58,164.5,3.61]
[1752510730421,8.33434098,164.59,164.5,3.61]
[1752510730729,6.0754,164.58,164.5,3.61]
[1752510730923,8.33434098,164.59,164.5,3.61]
[1752510731125,8.27434098,164.57,164.5,3.61]
[1752510731318,182.38,164.56,164.5,3.61]
[1752510731525,8.33434098,164.55,164.5,3.61]
[1752510731720,8.27434098,164.55,164.51,3.61]
[1752510731919,8.27434098,164.55,164.46,8.27434098]
[1752510732223,182.38,164.56,164.48,8.27434098]
[1752510732415,182.38,164.56,164.49,3.61]
[1752510733024,6.0765,164.55,164.52,6.0771]
[1752510733225,6.0765,164.55,164.54,3.61]
[1752510733421,6.0768,164.54,164.51,6.0776]
[1752510733628,6.0768,164.54,164.53,3.61]
[1752510733926,6.1366,164.55,164.53,3.61]
[1752510734521,6.0767,164.54,164.53,3.61]
[1752510734728,182.38,164.56,164.55,3.61]
[1752510736024,33.1191649,164.74,164.44,537.5604]
[1752510736025,5.04332097,164.65,164.56,3.61]
[1752510736225,0.06,164.64,164.56,3.61]
[1752510736432,0.06,164.62,164.56,3.61]
[1752510736928,6.0743,164.61,164.59,3.61]
[1752510737127,5.1367107,164.62,164.59,3.61]
[1752510737128,5.0767107,164.62,164.59,3.61]
[1752510737329,5.1367107,164.6,164.58,3.61]
[1752510738023,5.1367107,164.61,164.52,5.0767107]
[1752510738229,5.1367107,164.61,164.53,3.61]
[1752510738729,6.1345,164.6,164.58,3.61]
[1752510739230,8.27441694,164.62,164.58,3.61]
[1752510739231,6.0742,164.61,164.59,3.61]
[1752510739724,6.074,164.62,164.61,3.61]
[1752510739925,182.32,164.63,164.57,8.27441694]
[1752510740228,182.32,164.63,164.62,6.0737]
[1752510740430,182.32,164.63,164.62,9.6837]
[1752510740627,8.33441694,164.68,164.62,3.61]
[1752510740924,182.26,164.67,164.62,3.61]
[1752510741227,707.46,164.7,164.63,8.27441694]
[1752510741429,707.46,164.7,164.64,3.61]
[1752510741928,707.46,164.7,164.69,6.0711]
[1752510742125,182.26,164.7,164.69,9.6811]
[1752510744132,182.26,164.7,164.69,3.61]
[1752510744527,182.26,164.7,164.57,12.1511]
[1752510744528,182.26,164.7,164.67,6.0716]
[1752510744733,182.26,164.7,164.68,3.61]
[1752510745031,182.32,164.7,164.63,3.61]
[1752510745236,0.06,164.69,164.67,3.61]
[1752510746536,182.26,164.7,164.67,3.61]
[1752510746831,182.32,164.7,164.67,3.61]
[1752510747032,182.32,164.7,164.67,6.0716]
[1752510747532,182.32,164.7,164.68,3.61]
[1752510747928,0.06,164.69,164.62,3.61]
[1752510748230,6.1313,164.69,164.65,6.0723]
[1752510748430,0.06,164.69,164.66,3.61]
[1752510748736,0.06,164.68,164.66,3.61]
[1752510750133,6.1316,164.68,164.66,3.61]
[1752510750328,182.26,164.7,164.59,8.27441694]
[1752510750636,182.26,164.7,164.62,3.52]
[1752510750637,6.1329,164.65,164.62,3.52]
[1752510750834,0.06,164.64,164.62,3.52]
[1752510751132,188.1729,164.65,164.63,3.52]
[1752510751338,188.27224282,164.65,164.63,3.52]
[1752510752844,182.13934282,164.65,164.58,3.52]
[1752510753037,182.13934282,164.65,164.59,8.27441694]
[1752510753338,182.1,164.65,164.61,3.52]
[1752510753638,182.16,164.69,164.63,3.52]
[1752510753838,0.06,164.68,164.65,3.52]
[1752510754039,6.0717,164.68,164.65,6.0726]
[1752510754241,6.0717,164.68,164.66,3.52]
[1752510754242,6.1317,164.68,164.66,3.52]
[1752510754638,0.06,164.66,164.64,3.52]
[1752510754951,0.06,164.65,164.62,3.52]
[1752510755132,0.06,164.65,164.57,8.27441694]
[1752510755340,8.33441694,164.67,164.59,3.52]
[1752510755540,8.33441694,164.67,164.61,3.52]
[1752510755736,182.06,164.67,164.63,3.52]
[1752510755933,182.06,164.67,164.65,3.52]
[1752510756140,182.06,164.67,164.65,9.5925]
[1752510756341,182.12,164.67,164.66,6.09569953]
[1752510756639,182.12,164.67,164.64,3.52]
[1752510756840,182.12,164.67,164.65,3.52]
[1752510757540,182.06,164.67,164.66,6.10056131]
[1752510757736,182.06,164.67,164.66,9.62056131]
[1752510758342,182.06,164.67,164.66,9.62468912]
[1752510758539,182.06,164.67,164.66,15.69699308]
[1752510758745,182.06,164.67,164.66,9.62479308]
[1752510760949,182.06,164.67,164.66,15.69699308]
[1752510761749,0.06,164.73,164.67,3.52]
[1752510762049,8.27441694,164.74,164.63,8.27441694]
[1752510762050,6.0708,164.7,164.69,3.52]
[1752510762249,182.06,164.72,164.7,3.52]
[1752510762547,188.13,164.72,164.71,6.1186813]
[1752510763251,6.0704,164.71,164.7,3.52]
[1752510763451,182.0,164.72,164.7,15.7120673]
[1752510763651,182.0,164.72,164.71,9.6412673]
[1752510765155,182.0,164.72,164.71,15.7116673]
[1752510765656,6.0689,164.75,164.74,3.52]
[1752510765854,6.0689,164.75,164.74,9.6412673]
[1752510767355,188.0287,164.76,164.74,9.6412673]
[1752510767653,181.96,164.76,164.68,3.52]
[1752510767855,181.96,164.76,164.71,3.52]
[1752510768051,181.96,164.76,164.72,6.11275803]
[1752510768251,181.96,164.76,164.73,9.63275803]
[1752510768548,0.06,164.82,164.77,6.0682]
[1752510768754,0.06,164.82,164.72,8.27441694]
[1752510768755,181.92,164.81,164.79,3.52]
[1752510768953,181.98,164.81,164.79,3.52]
[1752510769153,6.0671,164.8,164.79,3.52]
[1752510769349,181.98,164.81,164.79,3.52]
[1752510769550,181.92,164.81,164.79,3.52]
[1752510769753,187.9868,164.81,164.8,3.52]
[1752510770157,181.92,164.81,164.8,3.52]
[1752510770367,181.92,164.81,164.8,9.61406209]
[1752510770756,187.9867,164.81,164.8,9.61406209]
[1752510770957,181.92,164.81,164.8,3.52]
[1752510772458,187.9867,164.81,164.8,3.52]
[1752510773861,6.0675,164.79,164.78,3.52]
[1752510774159,181.92,164.81,164.71,8.27441694]
[1752510774360,187.9867,164.81,164.8,3.52]
[1752510775755,6.0676,164.79,164.78,3.52]
[1752510775960,0.06,164.79,164.76,3.52]
[1752510776161,0.06,164.79,164.77,3.52]
[1752510776670,6.068,164.78,164.77,3.52]
[1752510776963,5.12620839,164.79,164.77,3.52]
[1752510777260,5.12620839,164.79,164.78,3.52]
[1752510777657,11.19380839,164.79,164.78,3.52]
[1752510777858,11.13380839,164.79,164.78,3.52]
[1752510778863,5.12620839,164.79,164.76,3.52]
[1752510779058,5.12620839,164.77,164.76,3.52]
[1752510779264,181.76,164.77,164.76,9.5886]
[1752510779861,181.76,164.77,164.76,3.52]
[1752510780358,181.76,164.77,164.76,9.5886]
[1752510781760,181.76,164.77,164.76,3.52]
[1752510781960,187.8282,164.77,164.76,3.52]
[1752510782960,6.0688,164.76,164.73,6.0695]
[1752510783166,6.0688,164.76,164.75,3.53]
[1752510783466,6.0696,164.74,164.73,3.53]
[1752510783864,6.07,164.73,164.7,6.0705]
[1752510784162,187.79,164.73,164.72,3.53]
[1752510784965,181.72,164.73,164.72,3.53]
[1752510785565,181.72,164.73,164.72,9.6]
[1752510787561,181.7,164.77,164.76,3.53]
[1752510789065,187.7682,164.77,164.76,3.53]
[1752510789974,181.7,164.77,164.76,3.53]
[1752510790574,187.7682,164.77,164.76,3.53]
[1752510791071,181.75,164.77,164.74,3.53]
[1752510791275,5.06620839,164.76,164.69,3.53]
[1752510792571,181.7,164.77,164.69,3.53]
[1752510792772,6.0688,164.76,164.69,3.53]
[1752510793177,181.7,164.77,164.69,3.53]
[1752510793675,181.7,164.77,164.71,3.53]
[1752510794086,187.7684,164.77,164.76,3.53]
[1752510794778,187.8184,164.77,164.76,3.53]
[1752510795780,187.7684,164.77,164.76,3.53]
[1752510798882,187.8184,164.77,164.76,3.53]
[1752510799276,187.7684,164.77,164.76,3.53]
[1752510799878,181.7,164.77,164.76,3.53]
[1752510800682,181.7,164.77,164.76,9.5986]
[1752510801315,181.7,164.77,164.76,3.53]
[1752510803189,181.7,164.77,164.76,9.5986]
[1752510804485,181.7,164.77,164.76,3.53]
[1752510804687,187.7682,164.77,164.76,3.53]
[1752510805293,181.7,164.77,164.76,9.5986]
[1752510806191,181.7,164.77,164.76,3.53]
[1752510806816,187.7682,164.77,164.76,3.53]
[1752510807492,181.7,164.77,164.76,9.5986]
[1752510808190,181.7,164.77,164.76,3.53]
[1752510808491,187.8182,164.77,164.76,3.53]
[1752510808688,181.75,164.77,164.74,9.5991]
[1752510808890,181.75,164.77,164.75,3.53]
[1752510809087,5.11620839,164.76,164.68,5.05697819]
[1752510809286,5.11620839,164.76,164.74,3.53]
[1752510809595,6.0692,164.75,164.74,3.53]
[1752510809790,0.05,164.74,164.72,3.53]
[1752510809992,5.11620839,164.74,164.72,3.53]
[1752510810193,5.06620839,164.74,164.66,5.06620839]
[1752510810399,5.06620839,164.74,164.73,3.53]
[1752510810588,5.06620839,164.75,164.67,3.4]
[1752510810789,11.13530839,164.75,164.73,3.4]
[1752510810997,5.06620839,164.75,164.74,3.4]
[1752510811404,0.05,164.83,164.75,3.4]
[1752510811695,186.50724242,164.82,164.75,3.4]
[1752510812001,0.05,164.81,164.75,3.4]
[1752510812299,6.0672,164.8,164.75,3.4]
[1752510812608,0.05,164.81,164.75,3.4]
[1752510813100,5.11724242,164.81,164.75,3.4]
[1752510813296,0.05,164.81,164.75,3.4]
[1752510813497,6.0674,164.8,164.78,3.4]
[1752510813702,6.0674,164.8,164.79,3.4]
[1752510814700,6.0669,164.81,164.79,3.4]
[1752510814901,11.13414242,164.81,164.74,3.4]
[1752510815599,6.0671,164.8,164.78,6.0675]
[1752510815802,5.06724242,164.81,164.79,3.4]
[1752510816003,0.05,164.8,164.77,6.068]
[1752510816202,6.0673,164.8,164.79,3.4]
[1752510822110,6.118,164.78,164.77,3.4]
[1752510822310,186.38724242,164.78,164.77,3.4]
[1752510822511,181.32,164.78,164.77,3.4]
[1752510823112,181.32,164.78,164.77,9.4682]
[1752510823509,181.32,164.78,164.77,3.4]
[1752510825211,181.32,164.78,164.77,9.4682]
[1752510825913,181.32,164.78,164.77,3.4]
[1752510826409,187.3878,164.78,164.77,3.4]
[1752510826611,0.05,164.77,164.7,3.4]
[1752510826828,5.06724242,164.75,164.7,3.4]
[1752510827021,5.06724242,164.75,164.73,6.0695]
[1752510827206,5.06724242,164.75,164.74,3.4]
[1752510828316,5.06724242,164.75,164.74,9.4693]
[1752510828711,11.13626033,164.77,164.74,3.4]
[1752510829129,5.06796033,164.77,164.76,3.4]
[1752510829913,5.11796033,164.77,164.7,3.4]
[1752510830113,5.06796033,164.75,164.7,3.4]
[1752510830315,11.13696033,164.75,164.7,3.4]
[1752510831116,11.13696033,164.75,164.73,3.4]
[1752510831412,6.0694,164.74,164.72,6.0699]
[1752510831620,5.06796033,164.73,164.66,5.05697819]
[1752510831915,5.06796033,164.73,164.65,5.05697819]
[1752510832115,186.30796033,164.74,164.66,3.4]
[1752510832818,6.0699,164.73,164.72,3.4]
[1752510833915,11.13736033,164.74,164.73,3.4]
[1752510834310,192.35736033,164.74,164.73,3.4]
[1752510834916,6.0699,164.73,164.71,3.4]
[1752510835213,187.2699,164.73,164.67,3.4]
[1752510835717,6.0701,164.72,164.67,3.4]
[1752510835918,181.2,164.73,164.67,3.4]
[1752510836222,187.2698,164.73,164.67,3.4]
[1752510836415,181.2,164.73,164.67,3.4]
[1752510836719,6.0701,164.72,164.7,6.0706]
[1752510836916,181.2,164.73,164.67,3.4]
[1752510837214,5.11796033,164.72,164.67,3.4]
[1752510837610,6.0706,164.71,164.67,3.4]
[1752510838115,6.0706,164.71,164.68,6.0714]
[1752510838418,11.18816033,164.72,164.69,3.4]
[1752510838619,5.11796033,164.72,164.69,3.4]
[1752510838821,5.11796033,164.72,164.65,3.4]
[1752510839014,6.0704,164.71,164.65,3.4]
[1752510839214,0.05,164.71,164.67,6.0715]
[1752510839435,0.05,164.7,164.67,6.0715]
[1752510839616,6.121,164.7,164.69,3.4]
[1752510840011,0.05,164.69,164.6,5.07997235]
[1752510840216,5.06796033,164.68,164.61,3.4]
[1752510840414,5.06796033,164.68,164.67,6.0719]
[1752510840616,11.13896033,164.7,164.67,6.0719]
[1752510840813,5.06796033,164.69,164.6,10.14793268]
[1752510841014,11.14006033,164.67,164.6,3.44]
[1752510841218,11.20006033,164.67,164.6,3.44]
[1752510841516,5.12796033,164.63,164.61,3.44]
[1752510841823,181.16,164.66,164.58,3.44]
[1752510842217,5.12796033,164.63,164.58,3.44]
[1752510842421,0.06,164.62,164.58,9.5149]
[1752510842620,5.06796033,164.61,164.59,3.44]
[1752510842821,5.06796033,164.63,164.55,3.44]
[1752510843122,0.06,164.62,164.55,8.50796033]
[1752510843311,186.26796033,164.64,164.56,3.44]
[1752510843516,5.12796033,164.64,164.56,3.44]
[1752510843712,6.0736,164.63,164.56,3.44]
[1752510844020,5.12796033,164.64,164.61,6.074]
[1752510844418,11.20116033,164.64,164.62,3.44]
[1752510844624,181.18,164.65,164.63,9.5133]
[1752510844822,181.18,164.65,164.64,3.44]
[1752510845025,181.16,164.67,164.66,3.44]
[1752510845223,192.35966033,164.68,164.66,3.44]
[1752510845520,186.28796033,164.68,164.66,3.44]
[1752510845817,192.35956033,164.68,164.66,3.44]
[1752510847422,186.28796033,164.68,164.67,3.44]
[1752510847630,181.16,164.68,164.67,3.44]
[1752510848320,181.16,164.68,164.67,9.5119]
[1752510852028,11.18896033,164.7,164.67,9.5119]
[1752510852029,192.30896033,164.7,164.68,3.44]
[1752510853233,192.25896033,164.7,164.69,3.44]
[1752510853435,181.12,164.7,164.69,3.44]
[1752510853729,181.12,164.7,164.67,3.44]
[1752510853730,186.23796033,164.7,164.67,3.44]
[1752510853929,6.0712,164.69,164.66,6.072]
[1752510854139,6.0712,164.69,164.68,3.44]
[1752510854331,6.1212,164.69,164.67,3.44]
[1752510854632,11.18946033,164.68,164.6,5.06796033]
[1752510854931,187.29503636,164.7,164.61,3.44]
[1752510855132,6.0714,164.69,164.66,3.44]
[1752510855431,187.29503636,164.7,164.66,3.44]
[1752510855631,187.24503636,164.7,164.66,3.44]
[1752510855831,0.05,164.69,164.66,3.44]
[1752510856532,6.1213,164.69,164.66,9.5122]
[1752510856726,6.1213,164.69,164.68,3.44]
[1752510857233,6.0713,164.69,164.68,3.44]
[1752510857533,193.31593636,164.7,164.67,6.0717]
[1752510857732,182.17707603,164.7,164.69,3.44]
[1752510857930,5.11796033,164.72,164.69,3.44]
[1752510858248,181.04,164.71,164.7,3.44]
[1752510858426,181.04,164.72,164.7,3.44]
[1752510858629,181.04,164.72,164.71,9.5104]
[1752510859527,181.04,164.72,164.71,3.44]
[1752510861133,181.04,164.72,164.71,9.5104]
[1752510861834,181.04,164.72,164.71,3.44]
[1752510862534,181.04,164.72,164.71,9.5104]
[1752510862836,181.04,164.72,164.71,3.44]
[1752510863036,181.04,164.72,164.71,9.5104]
[1752510864339,181.04,164.72,164.71,3.44]
[1752510864937,187.11,164.72,164.71,3.44]
[1752510865138,180.99,164.72,164.65,3.44]
[1752510865646,5.11796033,164.71,164.65,3.44]
[1752510866436,6.0712,164.69,164.68,3.44]
[1752510866637,5.11796033,164.71,164.69,3.44]
[1752510867037,6.071,164.7,164.69,3.44]
[1752510867438,6.071,164.7,164.68,6.0714]
[1752510867439,5.11796033,164.71,164.7,3.44]
[1752510867639,11.18856033,164.71,164.7,3.44]
[1752510869033,6.0711,164.7,164.67,6.0717]
[1752510869239,0.05,164.7,164.68,3.44]
[1752510869435,0.05,164.69,164.68,3.44]
[1752510869642,0.05,164.7,164.68,3.44]
[1752510870543,6.0711,164.69,164.68,3.44]
[1752510870738,6.1211,164.69,164.68,3.44]
[1752510871546,6.0711,164.69,164.68,3.44]
[1752510872640,5.06796033,164.69,164.61,3.4]
[1752510872841,5.11796033,164.67,164.62,6.0735]
[1752510873137,180.91,164.66,164.63,3.4]
[1752510873341,180.86,164.66,164.64,6.0729]
[1752510873542,180.86,164.66,164.65,3.4]
[1752510873741,180.90053612,164.66,164.65,3.4]
[1752510874347,187.02273612,164.66,164.65,3.4]
[1752510874540,180.95053612,164.66,164.58,3.4]
[1752510874751,0.05,164.64,164.6,6.0744]
[1752510874944,5.06796033,164.63,164.55,5.06796033]
[1752510875140,5.06796033,164.63,164.56,3.4]
[1752510875547,11.14156033,164.63,164.56,3.4]
[1752510876647,5.06796033,164.63,164.61,6.0739]
[1752510876944,5.06796033,164.63,164.62,3.4]
[1752510877349,11.19126033,164.63,164.62,3.4]
[1752510878046,5.06796033,164.63,164.62,3.4]
[1752510878548,5.06796033,164.65,164.62,3.4]
[1752510878854,11.14076033,164.65,164.62,3.4]
[1752510879149,5.06796033,164.65,164.58,3.4]
[1752510879350,180.86,164.66,164.59,5.06796033]
[1752510879547,180.86,164.66,164.65,3.4]
[1752510881449,186.9322,164.66,164.65,3.4]
[1752510882250,180.86,164.66,164.65,3.4]
[1752510882751,186.9322,164.66,164.65,3.4]
[1752510883855,180.86,164.66,164.65,3.4]
[1752510884048,180.86,164.66,164.65,9.4726]
[1752510886278,180.86,164.66,164.65,3.4]
[1752510889359,186.9322,164.66,164.65,3.4]
[1752510889554,180.86,164.66,164.65,3.4]
[1752510889955,186.9322,164.66,164.65,3.4]
[1752510892559,180.86,164.66,164.65,3.4]
[1752510893260,186.9322,164.66,164.65,3.4]
[1752510893959,180.86,164.66,164.65,3.4]
[1752510894558,186.9322,164.66,164.65,3.4]
[1752510895861,180.86,164.66,164.65,3.4]
[1752510896161,180.86,164.66,164.65,9.4726]
[1752510897062,180.62,164.66,164.64,6.0728]
[1752510897762,180.62,164.66,164.65,3.4]
[1752510897955,180.62,164.66,164.65,9.4726]
[1752510899959,0.03873581,164.67,164.66,9.4722]
[1752510900263,180.58,164.7,164.66,3.4]
[1752510900659,10.08664195,164.78,164.7,3.37]
[1752510900660,0.09,164.78,164.7,3.37]
[1752510900863,180.56,164.77,164.71,5.06796033]
[1752510901056,180.56,164.76,164.72,3.37]
[1752510901259,180.56,164.76,164.75,9.4389]
[1752510901868,6.12452286,164.8,164.75,9.4389]
[1752510902060,180.56,164.79,164.72,0.04397984]
[1752510902261,186.6275,164.79,164.73,3.37]
[1752510902457,186.6275,164.79,164.76,6.0683]
[1752510902861,186.7175,164.79,164.78,3.37]
[1752510903765,186.6275,164.79,164.78,3.37]
[1752510904161,186.7175,164.79,164.78,3.37]
[1752510904858,0.09,164.78,164.76,3.37]
[1752510905065,180.5,164.77,164.76,3.37]
[1752510906359,180.5,164.77,164.74,6.111552]
[1752510906770,180.5,164.77,164.76,3.37]
[1752510907268,186.5682,164.77,164.76,3.37]
[1752510907768,180.5,164.77,164.76,3.37]
[1752510908562,180.5,164.77,164.76,9.4385]
[1752510909264,180.42,164.79,164.78,9.4376]
[1752510910571,180.42,164.79,164.78,3.37]
[1752510911871,180.42,164.79,164.78,9.4378]
[1752510912367,180.42,164.79,164.78,3.37]
[1752510912970,180.42,164.79,164.78,9.4378]
[1752510913674,5.06796033,164.86,164.78,3.37]
[1752510913869,5.06796033,164.86,164.77,5.11313098]
[1752510913870,5.06796033,164.87,164.8,3.37]
[1752510914064,180.32,164.85,164.84,6.0652]
[1752510914269,180.32,164.85,164.84,9.4352]
[1752510914474,530.66402588,164.89,164.84,3.37]
[1752510914777,180.3,164.88,164.87,3.37]
[1752510915368,180.3,164.88,164.85,3.37]